bitfinex-derivatives/quotes_SOLF0:USTF0_20250901
["timestamp","ask_amount","ask_price","bid_price","bid_amount"]
[1756759383104,4.5492,197.84,197.75,4.55074929]
[1756759383300,4.5492,197.84,197.76,8.24]
[1756759383500,191.38298978,197.89,197.79,8.24]
[1756759383703,4.549,197.85,197.79,8.24]
[1756759384103,70.7493,197.88,197.79,8.24]
[1756759384303,4.549,197.85,197.79,8.24]
[1756759384504,339.4,197.91,197.82,8.24]
[1756759384701,70.7452,197.89,197.82,8.24]
[1756759385007,4.5487,197.86,197.82,8.24]
[1756759385903,70.7563,197.86,197.78,12.79074929]
[1756759386106,70.7635,197.84,197.78,12.79074929]
[1756759386309,70.7671,197.83,197.78,8.24]
[1756759386605,70.7672,197.83,197.78,8.24]
[1756759387002,70.7672,197.83,197.66,8.24]
[1756759387204,70.7672,197.83,197.74,12.79074929]
[1756759387403,4.5501,197.8,197.74,12.79074929]
[1756759387800,70.9463,197.86,197.74,12.79074929]
[1756759388008,4.5495,197.83,197.77,4.55074929]
[1756759388199,70.7487,197.88,197.8,4.55074929]
[1756759388397,70.7452,197.89,197.8,4.55074929]
[1756759388398,70.7526,197.87,197.8,4.55074929]
[1756759388601,70.7452,197.89,197.8,4.55074929]
[1756759388806,70.7503,197.88,197.8,4.55074929]
[1756759389002,4.5503,197.79,197.68,4.5527]
[1756759389205,70.7597,197.85,197.75,4.55074929]
[1756759389809,410.1382,197.91,197.78,4.55074929]
[1756759390010,70.7523,197.87,197.78,4.55074929]
[1756759390807,70.7562,197.86,197.77,4.55074929]
[1756759391012,70.7632,197.84,197.77,4.55074929]
[1756759391205,4.5493,197.83,197.77,4.55074929]
[1756759392713,4.5496,197.82,197.77,12.06074929]
[1756759392909,70.7637,197.84,197.74,4.55074929]
[1756759393709,70.7715,197.82,197.73,7.51]
[1756759394813,70.7754,197.81,197.73,7.51]
[1756759395109,0.17,197.83,197.73,7.51]
[1756759395313,4.5493,197.83,197.75,4.55074929]
[1756759395509,70.9202,197.88,197.76,7.51]
[1756759395909,4.5492,197.84,197.76,7.51]
[1756759396109,70.7542,197.87,197.76,7.51]
[1756759396402,0.17,197.88,197.76,7.51]
[1756759396610,339.4,197.91,197.81,4.55074929]
[1756759396808,339.4,197.91,197.84,4.55074929]
[1756759397008,0.17,197.93,197.84,12.06074929]
[1756759397313,0.17,197.95,197.84,7.51]
[1756759397510,0.17,197.95,197.84,12.06074929]
[1756759397921,70.8938,197.95,197.84,12.06074929]
[1756759398410,70.7459,197.89,197.77,7.51]
[1756759398616,70.7599,197.85,197.76,4.55074929]
[1756759399414,70.767,197.83,197.74,7.51]
[1756759399717,70.767,197.83,197.74,12.06074929]
[1756759400814,4.5501,197.8,197.74,12.06074929]
[1756759401209,4.5504,197.79,197.74,7.51]
[1756759401414,70.7715,197.82,197.74,7.51]
[1756759401611,70.7633,197.84,197.74,7.51]
[1756759401918,4.5495,197.82,197.74,7.51]
[1756759402111,70.7668,197.83,197.74,7.51]
[1756759402508,70.7668,197.83,197.66,155.4]
[1756759402509,0.17,197.74,197.66,155.4]
[1756759402710,0.17,197.74,197.58,7.51]
[1756759402711,70.8077,197.72,197.61,7.51]
[1756759403016,0.17,197.71,197.59,4.55074929]
[1756759403219,4.55074929,197.72,197.56,7.51]
[1756759403418,43.3,197.73,197.55,4.55074929]
[1756759403621,0.17,197.7,197.54,0.88065594]
[1756759403813,0.17,197.7,197.53,4.55074929]
[1756759404115,0.17,197.7,197.5,7.51]
[1756759404116,0.17,197.67,197.5,7.51]
[1756759404509,0.17,197.65,197.5,7.51]
[1756759404712,40.58,197.64,197.5,7.51]
[1756759404914,0.17,197.65,197.53,7.51]
[1756759405318,0.17,197.65,197.51,4.55074929]
[1756759405616,0.17,197.65,197.54,4.55074929]
[1756759405818,0.17,197.65,197.55,4.55074929]
[1756759406128,0.17,197.7,197.62,4.55074929]
[1756759406319,0.17,197.7,197.58,4.55074929]
[1756759406822,4.55074929,197.68,197.5,7.51]
[1756759407013,0.17,197.67,197.5,12.06074929]
[1756759407209,0.17,197.67,197.53,4.55074929]
[1756759407409,0.17,197.67,197.54,7.51]
[1756759407920,0.17,197.67,197.55,4.55074929]
[1756759408620,0.17,197.67,197.54,7.51]
[1756759409025,0.17,197.67,197.52,4.55074929]
[1756759409215,4.55074929,197.68,197.52,4.55074929]
[1756759409416,0.17,197.67,197.52,4.55074929]
[1756759409621,0.17,197.67,197.53,7.51]
[1756759409917,0.17,197.67,197.55,4.55074929]
[1756759410321,0.17,197.67,197.56,7.51]
[1756759411220,70.7847,197.78,197.66,7.51]
[1756759411421,70.7918,197.76,197.68,4.55074929]
[1756759411620,70.7882,197.77,197.66,7.51]
[1756759411621,75.3469,197.75,197.66,7.51]
[1756759411920,70.8387,197.63,197.53,7.51]
[1756759412124,4.5545,197.61,197.53,7.51]
[1756759412418,70.8311,197.65,197.53,7.51]
[1756759412626,0.17,197.67,197.53,7.51]
[1756759413016,0.17,197.74,197.48,7.68746]
[1756759413220,0.17,197.66,197.5,7.51]
[1756759413418,0.17,197.66,197.52,4.55074929]
[1756759413621,0.17,197.66,197.53,7.51]
[1756759414124,152.88,197.68,197.48,0.17746]
[1756759414125,152.88,197.68,197.5,4.55074929]
[1756759414427,123.69,197.68,197.55,7.51]
[1756759415228,0.17,197.68,197.55,7.51]
[1756759416228,0.17,197.68,197.55,12.06074929]
[1756759416422,0.17,197.68,197.55,7.51]
[1756759417727,0.17,197.73,197.57,7.51]
[1756759417932,0.17,197.73,197.6,7.56]
[1756759418331,0.17,197.73,197.62,4.55074929]
[1756759418635,0.17,197.73,197.63,7.56]
[1756759419227,0.17,197.73,197.58,7.56]
[1756759419728,70.8228,197.68,197.58,7.56]
[1756759422730,70.8228,197.68,197.53,7.56]
[1756759422933,70.8228,197.68,197.53,12.11074929]
[1756759423929,0.17,197.67,197.53,12.11074929]
[1756759424535,0.17,197.65,197.53,7.56]
[1756759424835,0.17,197.65,197.5,4.55074929]
[1756759424836,0.17,197.62,197.46,12.11074929]
[1756759425035,3.21,197.62,197.46,7.56]
[1756759425336,0.17,197.62,197.46,12.11074929]
[1756759425638,6.01,197.62,197.46,12.11074929]
[1756759425829,0.17,197.62,197.46,12.11074929]
[1756759426029,3.19,197.62,197.46,12.11074929]
[1756759426227,0.17,197.62,197.46,12.11074929]
[1756759426427,0.17,197.62,197.46,7.56]
[1756759426638,4.55074929,197.61,197.46,7.56]
[1756759427432,4.55074929,197.58,197.46,7.56]
[1756759427632,0.17,197.57,197.41,12.11074929]
[1756759428434,70.8871,197.5,197.41,7.56]
[1756759428628,4.5578,197.46,197.41,7.56]
[1756759428840,70.889,197.49,197.41,7.56]
[1756759429438,4.72074929,197.49,197.35,8.44155945]
[1756759429634,4.72074929,197.49,197.35,7.56]
[1756759429635,0.17,197.48,197.35,7.56]
[1756759430834,4.55074929,197.46,197.35,7.56]
[1756759431041,0.17,197.45,197.29,7.56]
[1756759431237,104.46,197.44,197.29,7.56]
[1756759431437,161.08,197.43,197.29,7.56]
[1756759431635,4.55074929,197.43,197.29,7.56]
[1756759431943,0.17,197.51,197.36,7.56]
[1756759432239,4.55074929,197.47,197.36,7.56]
[1756759432444,161.27,197.46,197.3,7.56]
[1756759432631,0.17,197.43,197.3,7.56]
[1756759432833,99.91,197.43,197.3,7.56]
[1756759433040,0.17,197.43,197.3,7.56]
[1756759433341,4.55074929,197.48,197.32,4.55074929]
[1756759433540,4.45,197.49,197.33,7.56]
[1756759434038,0.17,197.46,197.33,7.56]
[1756759434640,0.17,197.43,197.27,7.56]
[1756759436042,0.17,197.43,197.3,7.56]
[1756759437240,71.0816,197.43,197.3,7.56]
[1756759437444,70.9047,197.45,197.31,7.56]
[1756759437635,70.9244,197.4,197.31,7.56]
[1756759437837,70.9265,197.39,197.31,7.56]
[1756759438246,70.9283,197.38,197.31,7.56]
[1756759438644,0.17,197.44,197.31,7.56]
[1756759438840,0.17,197.44,197.26,70.971]
[1756759438841,0.17,197.44,197.32,4.55074929]
[1756759439046,0.17,197.44,197.33,7.56]
[1756759439645,70.9047,197.45,197.33,7.56]
[1756759440339,0.17,197.49,197.36,7.56]
[1756759440541,159.6,197.51,197.36,7.56]
[1756759440738,4.73074929,197.5,197.36,7.56]
[1756759440938,4.55074929,197.47,197.36,7.56]
[1756759441136,0.18,197.46,197.29,4.55074929]
[1756759441336,4.55074929,197.44,197.3,7.56]
[1756759441542,4.55074929,197.41,197.3,7.56]
[1756759441742,106.47074929,197.41,197.3,7.56]
[1756759441934,106.47074929,197.41,197.24,341.0619616]
[1756759441935,0.18,197.4,197.25,7.56]
[1756759442336,4.55074929,197.38,197.25,7.56]
[1756759442540,4.55074929,197.38,197.2,0.19256]
[1756759442541,0.18,197.34,197.2,0.19256]
[1756759442947,0.18,197.34,197.21,7.56]
[1756759443147,4.55074929,197.36,197.21,7.56]
[1756759443446,0.18,197.24,197.2,0.19256]
[1756759443644,4.55074929,197.25,197.2,0.19256]
[1756759443645,4.73074929,197.25,197.2,0.19256]
[1756759443842,0.18,197.23,197.2,0.19256]
[1756759444047,159.24,197.24,197.2,0.19256]
[1756759444748,0.18,197.23,197.2,0.19256]
[1756759444950,340.48,197.27,197.2,0.19256]
[1756759444951,159.06,197.25,197.2,0.19256]
[1756759445246,0.18,197.24,197.2,0.19256]
[1756759445844,70.9964,197.19,197.04,7.49222629]
[1756759446053,71.0002,197.18,197.04,7.49222629]
[1756759446348,71.0002,197.18,197.01,7.49222629]
[1756759446349,71.0108,197.15,197.01,7.49222629]
[1756759446545,78.7472,197.16,197.01,7.49222629]
[1756759446546,78.7474,197.16,197.01,7.49222629]
[1756759446752,158.74,197.17,197.02,71.0567]
[1756759446942,158.76,197.2,197.02,71.0567]
[1756759447146,70.9894,197.21,197.05,7.49222629]
[1756759447350,71.0058,197.17,196.98,23.4936126]
[1756759447646,7.74,197.14,196.98,23.4936126]
[1756759447845,158.72,197.14,196.99,7.56]
[1756759448051,70.9871,197.22,197.02,8.22]
[1756759448247,357.08881019,197.24,197.08,4.5664]
[1756759448549,0.88317028,197.18,197.1,8.22]
[1756759448949,158.98,197.31,197.14,8.22]
[1756759449159,70.9207,197.41,197.22,8.22]
[1756759449355,3.69355294,197.4,197.27,8.22]
[1756759449650,7.55,197.5,197.31,8.22]
[1756759449846,70.8828,197.51,197.31,8.22]
[1756759449847,70.9095,197.44,197.31,8.22]
[1756759450047,78.4496,197.46,197.31,8.22]
[1756759450247,7.55,197.46,197.31,8.22]
[1756759450449,78.4492,197.46,197.31,8.22]
[1756759450754,70.9064,197.44,197.31,8.22]
[1756759451049,70.9045,197.45,197.26,8.22]
[1756759451050,70.9256,197.39,197.26,8.22]
[1756759451249,70.9356,197.36,197.26,8.22]
[1756759451448,7.55,197.38,197.26,8.22]
[1756759451649,4.5591,197.41,197.26,8.22]
[1756759451847,70.9248,197.39,197.26,8.22]
[1756759452049,166.57,197.43,197.3,4.5614]
[1756759452250,7.55,197.48,197.32,7.49222629]
[1756759452449,158.98,197.5,197.37,8.22]
[1756759452752,340.68,197.53,197.41,8.22]
[1756759453152,340.68,197.53,197.34,70.9421]
[1756759453153,70.8891,197.49,197.35,15.71222629]
[1756759453351,70.903,197.45,197.29,8.22]
[1756759453550,78.4421,197.48,197.29,8.22]
[1756759453750,7.55,197.4,197.29,8.22]
[1756759453954,70.8995,197.46,197.29,8.22]
[1756759454147,4.5574,197.48,197.32,8.22]
[1756759454449,7.55,197.52,197.32,8.22]
[1756759454647,70.8818,197.51,197.36,8.22]
[1756759454850,70.8995,197.46,197.36,8.22]
[1756759455054,70.9101,197.43,197.29,8.22]
[1756759455348,236.9329,197.45,197.29,8.22]
[1756759455349,7.55,197.45,197.29,8.22]
[1756759455549,7.55,197.45,197.32,8.22]
[1756759455755,7.55,197.45,197.27,7.49222629]
[1756759455945,7.55,197.45,197.28,8.22]
[1756759456345,7.55,197.45,197.23,15.71222629]
[1756759456543,7.49222629,197.46,197.23,15.71222629]
[1756759456750,7.49222629,197.42,197.23,15.71222629]
[1756759456951,7.55,197.41,197.23,8.22]
[1756759457154,7.55,197.41,197.23,15.71222629]
[1756759457557,7.55,197.41,197.24,8.22]
[1756759457852,7.55,197.41,197.28,8.22]
[1756759458761,7.55,197.41,197.21,8.22]
[1756759459355,7.49222629,197.38,197.21,8.22]
[1756759459554,19.45,197.37,197.21,8.22]
[1756759459755,7.39794343,197.37,197.21,8.22]
[1756759459948,165.65794343,197.37,197.21,8.22]
[1756759460148,7.39794343,197.37,197.21,8.22]
[1756759460349,7.39794343,197.37,197.22,8.22]
[1756759460549,340.62,197.39,197.22,8.22]
[1756759460749,340.62,197.39,197.26,8.22]
[1756759460953,11.18673575,197.66,197.3,8.22]
[1756759460954,7.49222629,197.5,197.3,8.22]
[1756759461155,340.62,197.52,197.34,8.22]
[1756759461354,3.6424888,197.51,197.34,8.22]
[1756759461555,3.6424888,197.51,197.38,79.1485]
[1756759461757,7.55,197.59,197.41,7.49222629]
[1756759461959,3.64355366,197.58,197.41,7.49222629]
[1756759462153,7.55,197.56,197.4,8.22]
[1756759462752,7.55,197.56,197.35,7.49222629]
[1756759462753,7.55,197.56,197.35,15.71222629]
[1756759462955,7.55,197.56,197.36,8.22]
[1756759462956,157.76,197.55,197.36,8.22]
[1756759463164,4.5557,197.55,197.38,4.5596]
[1756759463362,4.5557,197.55,197.39,15.71222629]
[1756759463565,7.55,197.51,197.35,7.49222629]
[1756759463763,4.5572,197.49,197.35,7.49222629]
[1756759464359,7.55,197.51,197.35,7.49222629]
[1756759464557,70.8859,197.5,197.35,7.49222629]
[1756759464961,165.29,197.51,197.35,7.49222629]
[1756759466164,7.55,197.47,197.34,8.22]
[1756759466561,7.55,197.47,197.3,12.05352629]
[1756759466562,70.8999,197.46,197.3,7.49222629]
[1756759466766,7.55,197.43,197.29,8.22]
[1756759467360,12.1087,197.43,197.29,8.22]
[1756759467962,4.559,197.41,197.29,8.22]
[1756759468570,4.5596,197.39,197.29,8.22]
[1756759468770,70.9224,197.4,197.24,8.37394209]
[1756759468970,7.55,197.39,197.23,8.22]
[1756759469270,70.9331,197.37,197.23,8.22]
[1756759469465,70.9475,197.33,197.21,340.62]
[1756759469668,78.4911,197.35,197.17,8.22]
[1756759469867,4.5614,197.31,197.17,8.22]
[1756759470569,70.9437,197.34,197.17,8.22]
[1756759470570,4.5619,197.29,197.17,8.22]
[1756759472369,78.5036,197.32,197.17,8.22]
[1756759472572,78.5036,197.32,197.04,1464.33512095]
[1756759472573,7.49222629,197.3,197.11,8.22]
[1756759472773,7.55,197.25,197.11,8.22]
[1756759472969,127.5,197.24,197.11,8.22]
[1756759473475,7.55,197.21,197.06,134.75868281]
[1756759473871,12.86,197.2,197.06,134.75868281]
[1756759474175,7.55,197.19,197.06,134.75868281]
[1756759474773,7.55,197.19,197.04,8.22]
[1756759475068,7.55,197.19,197.01,8.22]
[1756759475280,7.55,197.17,197.01,8.22]
[1756759476175,7.55,197.17,196.98,23.4936126]
[1756759476176,7.55,197.13,196.98,23.4936126]
[1756759476375,155.48,197.12,196.98,23.4936126]
[1756759476775,7.55,197.09,196.98,23.4936126]
[1756759476980,348.23222629,197.1,196.98,23.4936126]
[1756759477273,7.55,197.09,196.98,23.4936126]
[1756759477477,348.23222629,197.1,196.98,23.4936126]
[1756759477773,7.55,197.05,196.98,23.4936126]
[1756759477973,340.74,197.1,196.98,23.4936126]
[1756759478174,7.49222629,197.05,196.98,23.4936126]
[1756759478380,340.74,197.1,196.98,14.9836126]
[1756759478580,7.49222629,197.08,196.98,14.9836126]
[1756759478776,7.49222629,197.04,196.98,14.9836126]
[1756759479076,155.3,197.05,196.98,14.9836126]
[1756759479282,7.49222629,197.09,196.98,14.9836126]
[1756759479485,155.34,197.08,196.98,14.9836126]
[1756759479679,226.3213,197.07,196.98,14.9836126]
[1756759479880,7.49222629,197.09,196.98,14.9836126]
[1756759480186,340.74,197.1,196.98,23.1536126]
[1756759480386,340.74,197.1,196.98,94.2235126]
[1756759480577,340.74,197.1,196.99,8.17]
[1756759480982,155.04,197.16,197.01,8.17]
[1756759481174,195.09724682,197.18,197.01,8.17]
[1756759481378,195.09724682,197.18,197.02,8.17]
[1756759481575,195.09724682,197.18,197.06,8.17]
[1756759481877,195.09724682,197.18,197.05,71.0441]
[1756759481878,340.9,197.22,197.09,8.17]
[1756759482281,70.9879,197.21,197.09,8.17]
[1756759482484,4.5645,197.17,197.03,8.17]
[1756759482785,154.8,197.16,197.03,8.17]
[1756759482981,154.78,197.18,197.03,8.17]
[1756759483381,154.74,197.18,197.03,8.17]
[1756759483883,162.23222629,197.18,197.03,8.17]
[1756759484283,544.62492651,197.22,197.03,8.17]
[1756759484482,154.7,197.21,197.04,7.49222629]
[1756759484679,154.7,197.21,197.05,8.17]
[1756759484880,225.6881,197.21,197.05,8.17]
[1756759485074,154.7,197.21,197.05,8.17]
[1756759485787,70.9996,197.18,197.05,8.17]
[1756759485986,71.0172,197.13,196.99,8.17]
[1756759486183,225.4372,197.13,196.99,8.17]
[1756759487683,4.5656,197.12,196.99,8.17]
[1756759488077,154.02,197.12,196.99,8.17]
[1756759488282,71.0239,197.11,196.99,8.17]
[1756759488887,4.5663,197.09,196.99,8.17]
[1756759489282,4.5661,197.1,196.99,8.17]
[1756759489484,71.0276,197.1,196.99,8.17]
[1756759489686,71.0276,197.1,196.98,14.9836126]
[1756759489687,71.0348,197.08,196.98,14.9836126]
[1756759489983,4.5675,197.04,196.98,14.9836126]
[1756759490181,153.48,197.05,196.98,14.9836126]
[1756759490379,4.5673,197.05,196.98,14.9836126]
[1756759490583,153.42,197.06,196.98,14.9836126]
[1756759490990,224.4654,197.06,196.98,14.9836126]
[1756759491378,153.42,197.06,196.98,14.9836126]
[1756759491684,71.053,197.03,196.98,14.9836126]
[1756759491884,71.0601,197.01,196.98,14.9836126]
[1756759492086,71.053,197.03,196.98,14.9836126]
[1756759492485,7.49222629,197.0,196.82,8.17]
[1756759492684,115.86,196.99,196.82,8.17]
[1756759494886,7.49222629,196.96,196.76,15.66222629]
[1756759495189,7.49222629,196.96,196.77,8.17]
[1756759495396,5.36,196.95,196.77,8.17]
[1756759495690,7.49222629,196.92,196.72,9.05426991]
[1756759495889,7.49222629,196.92,196.62,96.7]
[1756759495890,7.49222629,196.8,196.55,8.17]
[1756759496085,7.49222629,196.8,196.54,71.2262]
[1756759496086,493.54,196.79,196.6,8.17]
[1756759496393,152.4,196.78,196.6,8.17]
[1756759496989,7.49222629,196.75,196.6,8.17]
[1756759497191,7.49222629,196.75,196.54,8.17]
[1756759497489,7.49222629,196.71,196.54,8.17]
[1756759497888,41.92,196.7,196.54,8.17]
[1756759498185,41.92,196.7,196.48,8.17]
[1756759498388,7.49222629,196.67,196.48,8.17]
[1756759499095,5.34,196.66,196.49,8.17]
[1756759499295,348.32,196.65,196.49,8.17]
[1756759499591,341.3,196.65,196.49,8.17]
[1756759499782,152.68,196.64,196.49,8.17]
[1756759500184,341.3,196.65,196.49,8.17]
[1756759500185,152.62,196.63,196.49,8.17]
[1756759500381,71.2065,196.61,196.49,8.17]
[1756759500586,4.5778,196.6,196.49,8.17]
[1756759500994,71.2154,196.58,196.43,8.17]
[1756759501297,71.2009,196.62,196.43,8.17]
[1756759501498,152.52,196.61,196.43,8.17]
[1756759501997,152.44,196.6,196.43,8.17]
[1756759502191,152.44,196.59,196.39,134.57374774]
[1756759502384,12.17968979,196.61,196.38,8.17]
[1756759502588,152.38,196.6,196.38,8.17]
[1756759502783,152.38,196.6,196.35,12.17968979]
[1756759502784,152.38,196.6,196.29,8.17]
[1756759502989,152.38,196.6,196.32,8.17]
[1756759503189,12.17968979,196.54,196.32,8.17]
[1756759503387,12.17968979,196.57,196.32,8.17]
[1756759503584,8.7,196.56,196.32,8.17]
[1756759504090,12.17968979,196.56,196.34,8.17]
[1756759504299,8.72,196.55,196.34,8.17]
[1756759504596,12.17968979,196.53,196.34,8.17]
[1756759505189,1475.95968979,196.68,196.34,8.17]
[1756759505190,12.17968979,196.65,196.38,4.5826]
[1756759505394,12.17968979,196.63,196.39,8.17]
[1756759505702,341.7,196.65,196.44,4.5812]
[1756759505888,12.17968979,196.71,196.47,8.17]
[1756759506087,195.34207955,196.81,196.49,8.17]
[1756759506088,341.72,196.77,196.49,8.17]
[1756759506299,12.17968979,196.71,196.49,8.17]
[1756759507185,341.72,196.77,196.49,8.17]
[1756759507186,12.17968979,196.74,196.49,8.17]
[1756759507388,341.72,196.77,196.49,8.17]
[1756759507389,341.72,196.77,196.53,8.17]
[1756759507586,341.72,196.77,196.57,71.2171]
[1756759507788,71.1588,196.74,196.58,8.17]
[1756759507990,4.5752,196.71,196.58,8.17]
[1756759508187,71.1684,196.71,196.58,8.17]
[1756759508396,71.1843,196.67,196.52,20.02968979]
[1756759508598,71.1811,196.68,196.44,7.85]
[1756759508599,153.82,196.66,196.44,7.85]
[1756759508792,12.17968979,196.71,196.47,7.85]
[1756759508992,153.94,196.7,196.5,7.85]
[1756759509190,341.72,196.77,196.54,71.2287]
[1756759509493,496.38,196.77,196.57,71.2177]
[1756759509688,341.72,196.77,196.62,79.0494]
[1756759509893,154.72,196.83,196.63,7.85]
[1756759510199,207.52176934,196.81,196.63,7.85]
[1756759510399,207.52176934,196.81,196.56,12.17968979]
[1756759510400,12.17968979,196.76,196.56,20.02968979]
[1756759510590,496.5,196.75,196.56,7.85]
[1756759510791,341.78,196.75,196.56,7.85]
[1756759511097,341.78,196.75,196.59,7.85]
[1756759511593,195.34207955,196.81,196.62,79.0497]
[1756759511797,350.60207955,196.81,196.62,7.85]
[1756759512191,195.34207955,196.81,196.62,7.85]
[1756759512393,195.34207955,196.81,196.65,7.85]
[1756759512600,195.34207955,196.81,196.67,7.85]
[1756759513298,195.34207955,196.81,196.69,12.17968979]
[1756759513497,195.34207955,196.81,196.7,7.85]
[1756759514090,195.34207955,196.81,196.7,71.1712]
[1756759514395,12.17968979,196.97,196.75,7.85]
[1756759514591,155.12,196.96,196.75,7.85]
[1756759515098,341.76,196.99,196.75,71.1572]
[1756759515296,341.76,196.99,196.8,7.85]
[1756759515491,1588.78,197.12,196.84,20.02968979]
[1756759515492,12.17968979,197.07,196.84,20.02968979]
[1756759515699,154.9,197.06,196.85,71.1196]
[1756759515993,155.0,197.06,196.88,71.1091]
[1756759516198,155.0,197.11,196.9,7.85]
[1756759516394,341.74,197.12,196.94,20.02968979]
[1756759516994,12.17968979,197.26,197.01,12.17968979]
[1756759517302,12.17968979,197.26,197.02,7.85]
[1756759517598,12.47164417,197.25,197.04,7.85]
[1756759517796,3.55164417,197.24,197.04,7.85]
[1756759517996,3.55164417,197.24,197.07,7.85]
[1756759518196,341.68,197.29,197.07,7.85]
[1756759518501,341.68,197.29,197.12,7.85]
[1756759520002,155.48,197.28,197.06,7.85]
[1756759520496,12.17968979,197.25,197.03,341.6]
[1756759520702,12.17968979,197.25,197.04,7.85]
[1756759520897,341.68,197.29,197.05,7.85]
[1756759521102,155.54,197.25,197.05,7.85]
[1756759521403,155.48,197.25,197.05,7.85]
[1756759521606,341.68,197.29,197.1,7.85]
[1756759521804,159.14044354,197.28,197.1,7.85]
[1756759522000,3.69968698,197.27,197.04,7.85]
[1756759522298,3.69968698,197.27,196.95,62.0]
[1756759522299,12.17968979,197.2,196.98,7.85]
[1756759522506,12.17968979,197.15,196.92,7.85]
[1756759522702,341.34,197.14,196.95,7.85]
[1756759522898,341.34,197.19,196.95,7.85]
[1756759523099,155.6,197.18,197.0,7.85]
[1756759523302,341.32,197.26,197.09,12.17968979]
[1756759523500,12.17968979,197.37,197.1,7.85]
[1756759523699,12.17968979,197.32,197.1,7.85]
[1756759524295,12.17968979,197.32,197.04,12.17968979]
[1756759524296,71.0099,197.16,197.04,7.85]
[1756759524500,4.5656,197.13,196.99,341.32]
[1756759524706,71.0099,197.16,196.99,341.32]
[1756759524902,71.0099,197.16,196.97,20.02968979]
[1756759524903,155.54,197.17,196.97,20.02968979]
[1756759525301,12.17968979,197.27,197.02,12.17968979]
[1756759525601,155.46,197.23,197.08,7.85]
[1756759526008,12.17968979,197.35,197.12,12.17968979]
[1756759526197,155.4,197.34,197.12,20.02968979]
[1756759526398,12.17968979,197.3,197.05,12.17968979]
[1756759526607,155.4,197.34,197.03,7.85]
[1756759526608,12.17968979,197.25,197.03,7.85]
[1756759526810,155.38,197.24,197.03,7.85]
[1756759527104,12.17968979,197.25,197.03,7.85]
[1756759527306,123.38,197.24,197.03,7.85]
[1756759527508,12.17968979,197.25,197.03,7.85]
[1756759527803,12.17968979,197.2,196.98,12.17968979]
[1756759528005,423.6,197.19,196.99,7.85]
[1756759528299,423.6,197.19,196.94,14.74]
[1756759528300,155.3,197.22,197.04,7.85]
[1756759528501,155.3,197.22,196.98,20.02968979]
[1756759528709,12.17968979,197.2,196.93,12.17968979]
[1756759529011,12.17968979,197.15,196.93,12.17968979]
[1756759529204,8.96,197.14,196.93,12.17968979]
[1756759529408,8.96,197.13,196.93,12.17968979]
[1756759529605,8.96,197.13,196.92,7.85]
[1756759529906,12.17968979,197.11,196.92,7.85]
[1756759530108,341.14,197.1,196.92,7.85]
[1756759530308,154.96,197.09,196.92,7.85]
[1756759530505,341.14,197.1,196.95,12.17968979]
[1756759530807,341.14,197.1,196.96,7.85]